fUSD/lending_fUSD_20240330
["ID","MTS","AMOUNT","RATE_DAILY","PERIOD"]
[321015077,1711767032060,-1059.25547305,0.000372,2]
[321015085,1711767032132,-7957.01094405,0.000372,2]
[321015087,1711767032142,-6150.61,0.000372,2]
[321015089,1711767032152,-6213.83,0.000372,2]
[321015092,1711767032162,-9999.99,0.000372,2]
[321015093,1711767032171,-2019.96,0.000372,15]
[321015095,1711767032181,-150.0,0.000372,2]
[321015097,1711767032191,-150.0,0.000372,2]
[321015099,1711767032200,-150.0,0.000372,2]
[321015101,1711767032210,-150.0,0.000372,2]
[321015104,1711767032219,-150.0,0.000372,2]
[321015105,1711767032229,-150.0,0.000372,2]
[321015107,1711767032244,-150.0,0.000372,2]
[321015110,1711767032254,-150.0,0.000372,2]
[321015111,1711767032265,-150.0,0.000372,2]
[321015113,1711767032275,-150.0,0.000372,2]
[321015115,1711767032284,-150.0,0.000372,2]
[321015117,1711767032294,-150.0,0.000372,2]
[321015119,1711767032303,-150.0,0.000372,2]
[321015121,1711767032313,-150.0,0.000372,2]
[321015123,1711767032322,-150.0,0.000372,2]
[321015125,1711767032332,-150.0,0.000372,2]
[321015128,1711767032342,-150.0,0.000372,2]
[321015130,1711767032354,-150.0,0.000372,2]
[321015132,1711767032364,-150.0,0.000372,2]
[321015134,1711767032374,-150.0,0.000372,2]
[321015136,1711767032383,-150.0,0.000372,2]
[321015138,1711767032392,-150.0,0.000372,2]
[321015140,1711767032402,-150.0,0.000372,2]
[321015142,1711767032411,-150.0,0.000372,2]
[321015144,1711767032421,-150.0,0.000372,2]
[321015155,1711767032695,-150.0,0.000372,2]
[321015156,1711767032706,-150.0,0.000372,2]
[321015157,1711767032716,-150.0,0.000372,2]
[321015158,1711767032725,-150.0,0.000372,2]
[321015159,1711767032735,-150.0,0.000372,2]
[321015160,1711767032746,-150.0,0.000372,2]
[321015161,1711767032756,-184.97965653,0.000372,2]
[321015162,1711767032765,-156.42,0.00038356,2]
[321015163,1711767032775,-442.56550264,0.00038371,7]
[321015164,1711767032784,-667.55,0.00038568,2]
[321015165,1711767032794,-400.0,0.00039,3]
[321015166,1711767032803,-510.48,0.00039625,2]
[321015167,1711767032813,-523.15187,0.00039664,2]
[321015168,1711767032823,-1023.49,0.00039756,2]
[321015169,1711767032834,-150.0,0.00039937,2]
[321015170,1711767032843,-150.99,0.00039937,2]
[321015171,1711767032853,-150.25,0.00040284,2]
[321015172,1711767032863,-23900.0,0.00040486,2]
[321015173,1711767032873,-250.0,0.00040486,2]
[321015174,1711767032883,-250.0,0.00040486,2]
[321015175,1711767032893,-1054.9,0.00040486,2]
[321015176,1711767032903,-2184.56,0.00040486,2]
[321015177,1711767032912,-1000.0,0.00040486,2]
[321015178,1711767032922,-163.85,0.00040486,15]
[321015179,1711767032932,-248.08,0.00040486,112]
[321015180,1711767032942,-1786.46,0.00040486,2]
[321015181,1711767032951,-847.55,0.00040486,2]
[321015182,1711767032961,-2763.29,0.00040486,2]
[321015183,1711767032971,-2504.28,0.00040486,2]
[321015184,1711767032981,-171.36,0.00040486,2]
[321015185,1711767032992,-1060.29,0.00040486,2]
[321015186,1711767033001,-10199.17,0.00040486,2]
[321015187,1711767033011,-847.55,0.00040497,2]
[321015188,1711767033020,-847.55,0.00040508,2]
[321015189,1711767033030,-847.55,0.00040518,2]
[321015190,1711767033040,-847.55,0.00040529,2]
[321015191,1711767033049,-847.55,0.0004054,2]
[321015192,1711767033058,-847.55,0.0004055,2]
[321015193,1711767033068,-847.55,0.00040561,2]
[321015194,1711767033077,-847.55,0.00040572,2]
[321015195,1711767033087,-847.55,0.00040582,2]
[321015196,1711767033097,-847.55,0.00040593,2]
[321015197,1711767033106,-847.55,0.00040603,2]
[321015198,1711767033117,-847.55,0.00040614,2]
[321015199,1711767033127,-847.55,0.00040625,2]
[321015200,1711767033137,-847.55,0.00040635,2]
[321015201,1711767033147,-847.55,0.00040646,2]
[321015202,1711767033157,-847.55,0.00040657,2]
[321015203,1711767033166,-847.55,0.00040667,2]
[321015204,1711767033176,-847.55,0.00040678,2]
[321015205,1711767033188,-847.55,0.00040689,2]
[321015206,1711767033197,-421.69,0.0004079,2]
[321015207,1711767033207,-667.55,0.00040832,2]
[321015208,1711767033216,-421.69,0.00040902,2]
[321015209,1711767033226,-210.0,0.00040919,5]
[321015210,1711767033237,-210.0,0.00040919,4]
[321015211,1711767033247,-450.0,0.00041,3]
[321015212,1711767033259,-421.69,0.00041014,2]
[321015213,1711767033269,-175.13,0.00041034,2]
[321015214,1711767033279,-180.0,0.00041096,2]
[321015215,1711767033289,-421.69,0.00041125,2]
[321015216,1711767033299,-421.69,0.00041237,2]
[321015217,1711767033308,-421.69,0.00041349,2]
[321015218,1711767033321,-421.69,0.00041461,2]
[321015219,1711767033331,-495.11700075,0.000415,2]
[321015220,1711767033341,-199.25,0.00041537,2]
[321015221,1711767033351,-421.69,0.00041573,2]
[321015222,1711767033360,-421.69,0.00041685,2]
[321015223,1711767033370,-421.69,0.00041797,2]
[321015224,1711767033389,-421.69,0.00041909,2]
[321015225,1711767033399,-296.4708,0.00042007,2]
[321015226,1711767033409,-500.0,0.00042007,2]
[321015227,1711767033419,-749.3217,0.00042007,2]
[321015228,1711767033429,-421.69,0.0004202,2]
[321015229,1711767033439,-381.59,0.00042087,2]
[321015230,1711767033448,-9102.803,0.00042107,2]
[321015231,1711767033458,-421.69,0.00042132,2]
[321015232,1711767033468,-421.69,0.00042244,2]
[321015233,1711767033477,-421.69,0.00042356,2]
[321015234,1711767033487,-421.69,0.00042468,2]
[321015235,1711767033498,-2990.21006437,0.00042536,2]
[321015236,1711767033508,-421.69,0.0004258,2]
[321015237,1711767033517,-167.29094859,0.00042635,4]
[321015238,1711767033527,-3318.47236987,0.00042635,4]
[321015239,1711767033537,-968.309,0.00042636,2]
[321015240,1711767033547,-2423.0,0.00042636,2]
[321015241,1711767033556,-458.0,0.00042636,2]
[321015242,1711767033566,-1392.73,0.00042636,2]
[321015243,1711767033575,-583.444,0.00042636,2]
[321015244,1711767033585,-1226.0,0.00042636,2]
[321015245,1711767033594,-1254.0,0.00042636,2]
[321015246,1711767033604,-1268.0,0.00042636,2]
[321015247,1711767033615,-803.0,0.00042636,2]
[321015248,1711767033625,-609.226,0.00042636,2]
[321015249,1711767033634,-279.0,0.00042636,2]
[321015250,1711767033643,-433.0,0.00042636,2]
[321015251,1711767033653,-150.866,0.00042636,2]
[321015252,1711767033663,-1148.457,0.00042636,2]
[321015253,1711767033673,-2984.0,0.00042636,2]
[321015254,1711767033683,-1463.0,0.00042636,2]
[321015255,1711767033693,-396.0,0.00042636,2]
[321015256,1711767033703,-150.942,0.00042636,2]
[321015257,1711767033713,-2426.0,0.00042636,2]
[321015258,1711767033723,-1632.236,0.00042636,2]
[321015259,1711767033733,-151.0,0.00042636,2]
[321015260,1711767033743,-215.0,0.00042636,2]
[321015261,1711767033753,-421.69,0.00042692,2]
[321015262,1711767033762,-421.69,0.00042803,2]
[321015263,1711767033771,-421.69,0.00042915,2]
[321015264,1711767033781,-500.0,0.00043,3]
[321015265,1711767033791,-667.55,0.00043096,2]
[321015266,1711767033801,-1786.46,0.00043226,2]
[321015267,1711767033810,-2990.21006436,0.00043557,2]
[321015268,1711767033820,-152.0,0.00043611,3]
[321015269,1711767033829,-150.0,0.000443,8]
[321015270,1711767033839,-4777.0,0.0004439,2]
[321015271,1711767033849,-5687.0,0.0004439,2]
[321015272,1711767033858,-2454.481,0.0004439,2]
[321015273,1711767033867,-6607.51539582,0.0004439,2]
[321015274,1711767033927,-253.92241788,0.0004439,2]
[321015275,1711767033944,-4044.04277684,0.0004439,2]
[321015303,1711767038026,-742.74033965,0.0004439,2]
[321015304,1711767038039,-3264.29999891,0.0004439,2]
[321015305,1711767038051,-7571.2,0.0004439,2]
[321015306,1711767038086,-6432.91080623,0.0004439,2]
[321015314,1711767040061,-422.5,0.0004439,2]
[321015315,1711767041949,-1316.20038958,0.0004439,2]
[321015316,1711767042069,-9187.86681711,0.0004439,2]
[321015317,1711767042081,-1666.79321985,0.0004439,2]
[321015318,1711767042359,240.72962755,0.00042241,30]
[321015325,1711767043008,-252.34699168,0.0004439,2]
[321015326,1711767043238,-1255.66084645,0.0004439,2]
[321015327,1711767043248,-1186.351,0.0004439,2]
[321015328,1711767043257,-535.98590375,0.0004439,2]
[321015329,1711767043469,-526.09109625,0.0004439,2]
[321015330,1711767043478,-241.484,0.0004439,2]
[321015331,1711767043487,-172.0,0.0004446,56]
[321015332,1711767043496,-180.0,0.00044535,120]
[321015333,1711767043508,-2990.21006436,0.00044579,2]
[321015334,1711767043517,-523.15186,0.00044664,2]
[321015335,1711767043526,-152.0,0.00044768,4]
[321015336,1711767043535,-150.0,0.000448,8]
[321015337,1711767043544,-550.0,0.00045,3]
[321015338,1711767043554,-226.33,0.0004515,2]
[321015339,1711767043563,-150.0,0.000453,8]
[321015340,1711767043572,-1214.07,0.000453,2]
[321015341,1711767043581,-5068.48,0.000453,10]
[321015342,1711767043590,-568.94,0.000453,2]
[321015343,1711767043599,-667.55,0.0004536,2]
[321015344,1711767043608,-150.0,0.000455,8]
[321015345,1711767043617,-156.54012144,0.00045503,30]
[321015346,1711767043626,-175.66,0.00045526,2]
[321015347,1711767043635,-21214.062637,0.00045536,2]
[321015348,1711767043644,-1000.0,0.00045547,2]
[321015349,1711767043653,-2990.21006436,0.000456,2]
[321015350,1711767043663,-2423.0,0.00045636,2]
[321015351,1711767043672,-962.0,0.00045636,2]
[321015352,1711767043681,-458.0,0.00045636,2]
[321015353,1711767043690,-1383.0,0.00045636,2]
[321015354,1711767043699,-537.0,0.00045636,2]
[321015355,1711767043708,-1226.0,0.00045636,2]
[321015356,1711767043717,-1254.0,0.00045636,2]
[321015357,1711767043726,-1268.0,0.00045636,2]
[321015358,1711767043735,-803.0,0.00045636,2]
[321015359,1711767043744,-605.0,0.00045636,2]
[321015360,1711767043753,-279.0,0.00045636,2]
[321015361,1711767043762,-433.0,0.00045636,2]
[321015362,1711767043772,-150.0,0.00045636,2]
[321015363,1711767043782,-1139.0,0.00045636,2]
[321015364,1711767043791,-2984.0,0.00045636,2]
[321015365,1711767043801,-1417.448,0.00045636,2]
[321015366,1711767043810,-396.0,0.00045636,2]
[321015367,1711767043819,-150.0,0.00045636,2]
[321015368,1711767043828,-2426.0,0.00045636,2]
[321015369,1711767043837,-1628.0,0.00045636,2]
[321015370,1711767043846,-150.0,0.00045636,2]
[321015371,1711767043855,-213.0,0.00045636,2]
[321015372,1711767043865,-166.48745694,0.00045683,30]
[321015373,1711767043873,-150.0,0.000458,8]
[321015374,1711767043882,-152.0,0.00045925,5]
[321015375,1711767043891,-156.19363586,0.00045935,30]
[321015376,1711767043901,-1786.46,0.00045966,2]
[321015377,1711767043910,-150.0,0.00046,8]
[321015378,1711767043919,-21214.06263696,0.00046224,2]
[321015379,1711767043928,-150.0,0.000463,8]
[321015380,1711767043937,-150.0,0.000465,8]
[321015381,1711767043946,-150.0,0.00046575,30]
[321015382,1711767043955,-2990.21006436,0.00046621,2]
[321015383,1711767043965,-228.0,0.000468,7]
[321015384,1711767043974,-150.0,0.000468,8]
[321015385,1711767043983,-334.42546001,0.000469,17]
[321015389,1711767046019,-65.57453999,0.000469,17]
[321015390,1711767046028,-321.15174436,0.000469,2]
[321015391,1711767046038,-233.03391878,0.00046912,2]
[321015392,1711767046049,-20078.02936149,0.00046912,2]
[321015393,1711767046196,-902.99935669,0.00046912,2]
[321015394,1711767046205,-160.09047562,0.00046912,30]
[321015395,1711767046215,-417.15,0.0004699,2]
[321015396,1711767046224,-600.0,0.00047,3]
[321015397,1711767046234,-20240.3809523,0.00047,2]
[321015398,1711767046245,-1664.81,0.00047,2]
[321015399,1711767046260,-672.44009638,0.00047,2]
[321015400,1711767046322,-10163.46111226,0.00047,2]
[321015401,1711767069594,49750.81182087,0.00025,2]
[321015402,1711767069641,104496.98311698,0.00025,2]
[321015408,1711767133139,170.63,0.00024875,2]
[321015409,1711767145263,406.76183169,0.0002425,2]
[321015410,1711767145715,192.82632522,0.000285,120]
[321015411,1711767165735,411.12565553,0.00024129,2]
[321015414,1711767272087,207.45978556,0.00042241,120]
[321015415,1711767273365,837.06111652,0.000232,2]
[321015455,1711767473620,-1000.0,0.00025089,2]
[321015461,1711767673777,-1000.0,0.00025089,2]
[321015462,1711767743671,-1000.0,0.0002509,2]
[321015466,1711768154116,-291.33670095,0.00025088,2]
[321015467,1711768154150,-916.69713161,0.00025088,2]
[321015468,1711768154169,-849.07326968,0.00025089,2]
[321015469,1711768154187,-1209.07760925,0.0002509,2]
[321015470,1711768154207,-2545.94646543,0.0002511,2]
[321015471,1711768154226,-644.98019774,0.00029007,2]
[321015472,1711768154247,-170.77,0.00029082,2]
[321015473,1711768154266,-4872.79417553,0.0003,2]
[321015480,1711768186295,300.0,0.0003305,120]
[321015501,1711768232206,-4947.71745,0.00031409,2]
[321015502,1711768232221,-1942.29576402,0.00031409,2]
[321015503,1711768232335,-621.84426066,0.00031409,2]
[321015505,1711768238086,-11017.97501912,0.00031409,2]
[321015506,1711768238096,-5307.7281277,0.0003143,4]
[321015507,1711768238109,-674.04323692,0.00031585,4]
[321015508,1711768238151,-451.63535208,0.00031585,4]
[321015509,1711768238160,-100.95961958,0.00032173,2]
[321015510,1711768238173,-2025.65425398,0.00032173,2]
[321015511,1711768238210,-2247.33917091,0.00032173,2]
[321015512,1711768238269,-692.845,0.00032173,2]
[321015513,1711768238281,-733.20195553,0.00032173,2]
[321015514,1711768238291,-303.04255498,0.00032181,2]
[321015515,1711768238332,-2124.38355867,0.00032181,2]
[321015516,1711768238344,-3372.57388635,0.00032181,2]
[321015517,1711768238353,-5800.0,0.0003219,2]
[321015518,1711768238362,-5800.0,0.00032198,2]
[321015519,1711768238371,-499.99,0.00032198,2]
[321015520,1711768238381,-3750.15,0.00032198,2]
[321015521,1711768238391,-5800.0,0.00032207,2]
[321015522,1711768238400,-1000.0,0.00032214,2]
[321015523,1711768238409,-5800.0,0.00032215,2]
[321015524,1711768238418,-9304.63,0.00032215,2]
[321015525,1711768238427,-2584.84771226,0.00032222,2]
[321015526,1711768238437,-5800.0,0.00032224,2]
[321015527,1711768238446,-3271.34,0.00032224,2]
[321015528,1711768238456,-2000.0,0.0003223,2]
[321015529,1711768238465,-655.52715395,0.0003223,4]
[321015530,1711768238474,-647.20152218,0.00032231,4]
[321015531,1711768238483,-58000.0,0.00032232,3]
[321015532,1711768238492,-5800.0,0.00032232,2]
[321015533,1711768238504,-572.3,0.0003418,2]
[321015534,1711768238513,-250.0,0.00035969,2]
[321015535,1711768238523,-150.0,0.00036353,2]
[321015536,1711768238532,-572.3,0.00036444,2]
[321015537,1711768238541,-400.0,0.00036665,2]
[321015538,1711768238550,-527.45,0.00036931,2]
[321015539,1711768238560,-453.18,0.00037085,2]
[321015540,1711768238569,-250.0,0.00037085,2]
[321015541,1711768238579,-193.27,0.00037349,2]
[321015542,1711768238588,-478.95,0.00037366,2]
[321015543,1711768238597,-31.12939513,0.00038356,2]
[321015544,1711768238637,-125.29060487,0.00038356,2]
[321015545,1711768238646,-572.3,0.00038708,2]
[321015546,1711768238655,-175.14,0.00039222,2]
[321015547,1711768238664,-258.53157793,0.0004,30]
[321015548,1711768238678,-742.80070057,0.0004,30]
[321015549,1711768238687,-256.52940623,0.00040359,2]
[321015550,1711768238700,-1655.5499999,0.00040359,2]
[321015554,1711768240322,-318.4047618,0.00040359,2]
[321015555,1711768240383,-72.25583207,0.00040359,2]
[321015556,1711768240393,-1741.3644003,0.00040386,2]
[321015557,1711768240403,-681.97,0.00040476,3]
[321015558,1711768240411,-10561.1297676,0.00040486,2]
[321015559,1711768240423,-2098.681669,0.00040486,2]
[321015560,1711768240435,-1243.88994137,0.00040486,2]
[321015587,1711768246530,-629.48786044,0.00040486,2]
[321015588,1711768246634,-9366.81076159,0.00040486,2]
[321015589,1711768246643,-170.66,0.00040486,15]
[321015590,1711768246652,-1000.0,0.00040546,2]
[321015591,1711768246661,-572.3,0.00040972,2]
[321015592,1711768246670,-180.0,0.00041047,2]
[321015593,1711768246679,-180.0,0.00041096,2]
[321015594,1711768246689,-400.0,0.00041248,2]
[321015595,1711768246698,-1741.36440022,0.00041652,2]
[321015596,1711768246707,-2500.0,0.00042137,2]
[321015597,1711768246717,-17053.5233,0.00042137,2]
[321015598,1711768246726,-977.8111,0.00042137,2]
[321015599,1711768246735,-175.67,0.00042227,2]
[321015601,1711768246745,-607.04641985,0.00042236,4]
[321015603,1711768246754,-1684.96420989,0.00042237,2]
[321015604,1711768246763,-67178.4188298,0.00042237,2]
[321015607,1711768246775,-278.00804413,0.00042237,2]
[321015677,1711769432295,-350.83374793,0.0003,4]
[321015678,1711769432835,-53.89489216,0.0003,4]
[321015679,1711769432845,-170.37698349,0.000322,2]
[321015680,1711769432854,-2584.64576217,0.00032221,4]
[321015681,1711769432864,-4933.93069206,0.00032222,2]
[321015682,1711769432873,-50681.59291071,0.00032232,3]
[321015683,1711769432883,-250.0,0.00033,3]
[321015684,1711769432892,-300.0,0.00035,3]
[321015685,1711769432902,-350.0,0.00037,3]
[321015686,1711769432911,-324.0,0.00037,2]
[321015687,1711769432920,-1329.0,0.00037,2]
[321015688,1711769432930,-513.92,0.00038286,2]
[321015689,1711769432941,-200.0,0.00039936,2]
[321015690,1711769432950,-250.0,0.00039945,2]
[321015691,1711769432959,-1720.23,0.00039963,2]
[321015692,1711769432970,-500.0,0.00040063,2]
[321015693,1711769432982,-504.23,0.00040098,2]
[321015694,1711769432994,-250.0,0.00040135,112]
[321015695,1711769433004,-22556.05416172,0.00040159,2]
[321015709,1711769438317,-1343.94583828,0.00040159,2]
[321015710,1711769438561,-170.66,0.00040167,15]
[321015711,1711769438575,-240.0,0.00040252,2]
[321015712,1711769438585,-250.0,0.0004032,2]
[321015713,1711769438595,-2808.4,0.00040354,2]
[321015714,1711769438605,-200.0,0.00040354,2]
[321015715,1711769438614,-150.0,0.00040394,2]
[321015716,1711769438624,-1918.95,0.00040425,2]
[321015717,1711769438633,-157.98,0.00040505,2]
[321015718,1711769438642,-513.92,0.0004055,2]
[321015719,1711769438652,-491.2,0.00040559,2]
[321015720,1711769438661,-500.0,0.00040616,2]
[321015721,1711769438671,-500.0,0.00040681,2]
[321015722,1711769438681,-157.98,0.00040717,2]
[321015723,1711769438690,-157.98,0.00040928,2]
[321015724,1711769438699,-436.59,0.00041039,120]
[321015726,1711769438709,-1000.0,0.0004109,3]
[321015728,1711769438717,-180.0,0.00041096,2]
[321015730,1711769438736,-157.98,0.00041139,2]
[321015733,1711769438749,-179.0288858,0.0004133,19]
[321015735,1711769438759,-157.98,0.0004135,2]
[321015737,1711769438768,-9999.99,0.00041359,2]
[321015739,1711769438778,-2704.71,0.00041359,2]
[321015740,1711769438788,-335.31693434,0.0004143,10]
[321015741,1711769438847,-1996.81420622,0.0004143,10]
[321015742,1711769438885,-9933.40895417,0.0004143,10]
[321015743,1711769438896,-12344.18990527,0.0004143,10]
[321015744,1711769438906,-499.99,0.00041455,2]
[321015745,1711769438915,-760.0,0.00041504,2]
[321015746,1711769438925,-157.98,0.00041561,2]
[321015747,1711769438934,-367.59,0.0004162,2]
[321015748,1711769438945,-2955.77,0.0004162,2]
[321015749,1711769438956,-171.24,0.00041715,2]
[321015750,1711769438966,-157.98,0.00041772,2]
[321015751,1711769438976,-17080.17889353,0.00041837,2]
[321015752,1711769438987,-179.33218432,0.00041837,10]
[321015753,1711769438997,-175.67,0.00041927,2]
[321015754,1711769439008,-21773.2075117,0.00041937,2]
[321015787,1711769442393,-1200.29997543,0.00041937,2]
[321015807,1711769443483,-1.50494664,0.00041937,2]
[321015808,1711769443526,-334.73117313,0.00041937,2]
[321015823,1711769446334,-2089.44563408,0.00041937,2]
[321015824,1711769446622,-25892.58632888,0.00041937,2]
[321015825,1711769446634,-8288.2833,0.00041937,2]
[321015829,1711769637164,-175.65559099,0.0003,4]
[321015830,1711769747426,678.7866,0.00042233,30]
[321015831,1711769883977,159.92768136,0.00032031,2]
[321015832,1711769961697,404.63222355,0.0003,4]
[321015833,1711770224329,1000.0,0.00032,2]
[321015835,1711770237215,1000.0,0.00032,3]
[321015836,1711770245892,359.7845041,0.0003,4]
[321015847,1711770632287,-44.73278778,0.0003,4]
[321015848,1711770632297,-253.5,0.00031476,2]
[321015849,1711770632307,-201.72587514,0.0003184,2]
[321015850,1711770632317,-598.0,0.00031995,2]
[321015851,1711770632326,-363.34795203,0.00031996,4]
[321015852,1711770632336,-34.84853159,0.00032131,2]
[321015853,1711770632349,-177.81494251,0.00032131,2]
[321015854,1711770632358,-150.0,0.00032231,3]
[321015855,1711770632368,-2896.53799392,0.00032232,3]
[321015856,1711770632562,-627.68,0.00032232,3]
[321015873,1711770637785,-4371.16931255,0.00032232,3]
[321015874,1711770637798,-2240.93127567,0.00032232,3]
[321015875,1711770637808,-42.19286969,0.00032232,3]
[321015969,1711770639585,-457.80713031,0.00032232,3]
[321015970,1711770639595,-42.18286969,0.00032908,2]
[321015972,1711770642288,-170.48060433,0.00032908,2]
[321015974,1711770642299,-250.0,0.00033,3]
[321015976,1711770642308,-499.99,0.00033,2]
[321015977,1711770642317,-2053.32,0.00033,2]
[321015979,1711770642327,-212.66347402,0.00033685,2]
[321015981,1711770642336,-2314.72541836,0.00033685,2]
[321015986,1711770642372,-800.86249994,0.00033685,2]
[321015989,1711770642383,-2042.48150929,0.00033685,2]
[321016015,1711770642563,-1509.55057241,0.00033685,2]
[321016017,1711770642573,-212.66347402,0.00034463,2]
[321016019,1711770642583,-9042.15254754,0.000348,4]
[321016021,1711770642593,-212.66347402,0.0003524,2]
[321016023,1711770642603,-212.66347402,0.00036017,2]
[321016025,1711770642613,-212.66347402,0.00036794,2]
[321016026,1711770642624,-1828.26,0.00036803,2]
[321016028,1711770642633,-262.19,0.00036803,15]
[321016030,1711770642643,-1196.0,0.000369,2]
[321016031,1711770642652,-212.66347402,0.00037571,2]
[321016032,1711770642662,-511.55591866,0.00037995,4]
[321016033,1711770642671,-482.84,0.00038233,2]
[321016034,1711770642681,-212.66347402,0.00038349,2]
[321016035,1711770642690,-500.0,0.00039001,2]
[321016036,1711770642700,-250.0,0.00039037,2]
[321016037,1711770642709,-245.6,0.00039053,2]
[321016038,1711770642718,-306.32,0.00039069,2]
[321016039,1711770642728,-212.66347402,0.00039126,2]
[321016040,1711770642737,-494.81,0.00039133,2]
[321016041,1711770642746,-1000.0,0.00039382,2]
[321016042,1711770642755,-1599.12,0.00039715,2]
[321016043,1711770642765,-250.0,0.00039766,2]
[321016044,1711770642774,-212.66347402,0.00039903,2]
[321016045,1711770642783,-156.11509045,0.00039996,4]
[321016046,1711770642793,-335.48,0.00039997,2]
[321016047,1711770642803,-23900.0,0.00039997,2]
[321016048,1711770642813,-150.0,0.0004005,2]
[321016049,1711770642825,-171.24,0.00040079,2]
[321016050,1711770642835,-170.66,0.00040263,15]
[321016051,1711770642844,-157.98,0.00040432,2]
[321016052,1711770642853,-482.84,0.00040497,2]
[321016053,1711770642864,-212.66347402,0.0004068,2]
[321016054,1711770642873,-180.0,0.00041096,2]
[321016055,1711770642884,-157.98,0.00041134,2]
[321016056,1711770642893,-150.0,0.000412,2]
[321016057,1711770642903,-4324.8717903,0.000412,7]
[321016058,1711770642914,-212.66347402,0.00041458,2]
[321016059,1711770642923,-2885.29379573,0.00041483,4]
[321016060,1711770642933,-338.0035,0.00041737,30]
[321016061,1711770642942,-1718.663,0.00041737,2]
[321016062,1711770642951,-1547.62005912,0.00041747,2]
[321016063,1711770642961,-3196.85277675,0.00041827,2]
[321016064,1711770642971,-3398.9435,0.00041827,2]
[321016065,1711770642980,-24791.0986,0.00041827,2]
[321016066,1711770642990,-1000.0,0.00041827,2]
[321016067,1711770642999,-157.033012,0.00041829,27]
[321016068,1711770643008,-157.033012,0.0004183,28]
[321016069,1711770643018,-151.033012,0.00041831,29]
[321016070,1711770643027,-151.033012,0.00041832,30]
[321016071,1711770643037,-151.033012,0.00041833,31]
[321016072,1711770643047,-151.033012,0.00041834,32]
[321016073,1711770643057,-151.033012,0.00041835,33]
[321016074,1711770643066,-151.033012,0.00041836,34]
[321016075,1711770643076,-157.98,0.00041836,2]
[321016076,1711770643085,-5986.9055,0.00041837,2]
[321016077,1711770643094,-2671.58241836,0.00041837,2]
[321016078,1711770643265,-1290.53076097,0.00041837,2]
[321016081,1711770645704,-1389.8073224,0.00041837,2]
[321016082,1711770687753,2205.7779112,0.00042233,30]
[321016091,1711771273889,261.4498859,0.0004223,30]
[321016092,1711771701418,644.98019774,0.00024002,2]
[321016096,1711771737681,295.6017746,0.00024002,2]
[321016097,1711771753251,420.80909599,0.00024002,2]
[321016116,1711771831726,-352.0384401,0.00026555,2]
[321016122,1711771832007,-2629.71725754,0.00026555,2]
[321016123,1711771832017,-1208.03383256,0.00026556,2]
[321016124,1711771832026,-205.43390403,0.00026557,2]
[321016125,1711771832035,-155.0,0.00026557,2]
[321016126,1711771832045,-155.0,0.00026558,2]
[321016127,1711771832054,-781.50282112,0.00026559,2]
[321016128,1711771832063,-163.90240332,0.0002656,2]
[321016129,1711771832072,-5044.96838424,0.00026657,2]
[321016176,1711771837708,-295.17170453,0.00026555,2]
[321016177,1711771837718,-501.2673802,0.00026657,2]
[321016178,1711771837727,-11.19627835,0.00026658,2]
[321016179,1711771837739,-657.70272895,0.00026658,2]
[321016180,1711771837749,-83.5745106,0.00026659,2]
[321016181,1711771837761,-71.4254894,0.00026659,2]
[321016182,1711771837770,-349.4633455,0.0002666,2]
[321016183,1711771837782,-298.52743707,0.0002666,2]